bitfinex/quotes_BTCUSD_20250619
["timestamp","ask_amount","ask_price","bid_price","bid_amount"]
[1750302373594,0.98169567,105030.0,105020.0,0.48848982]
[1750302373774,0.98169567,105030.0,105020.0,0.47896837]
[1750302373993,0.98169567,105030.0,105020.0,0.46944683]
[1750302374147,1.02121603,105030.0,105020.0,0.46944683]
[1750302374979,1.01169567,105030.0,105020.0,0.46944683]
[1750302375399,1.01169567,105030.0,105020.0,0.48848982]
[1750302376223,1.01169567,105030.0,105020.0,0.47896837]
[1750302376781,1.01169567,105030.0,105020.0,0.4599252]
[1750302376993,1.02121603,105030.0,105020.0,0.46944683]
[1750302377447,1.04031767,105030.0,105020.0,0.46944683]
[1750302377965,1.04031767,105030.0,105020.0,0.47896837]
[1750302379632,1.01169567,105030.0,105020.0,0.47896837]
[1750302379832,1.01169567,105030.0,105020.0,0.48848982]
[1750302379833,1.01031767,105030.0,105020.0,0.48848982]
[1750302380042,0.98101767,105030.0,105020.0,0.48848982]
[1750302380240,0.95239567,105030.0,105020.0,0.48848982]
[1750302380446,0.95239567,105030.0,105020.0,0.48848937]
[1750302380652,0.98101667,105030.0,105020.0,0.48848937]
[1750302380857,0.95239567,105030.0,105020.0,0.48848937]
[1750302381280,0.98101767,105030.0,105020.0,0.47896801]
[1750302381488,0.98101767,105030.0,105020.0,0.48848937]
[1750302381702,0.95239567,105030.0,105020.0,0.48848937]
[1750302382309,0.98101767,105030.0,105020.0,0.47896801]
[1750302382524,0.98101767,105030.0,105020.0,0.46944656]
[1750302382742,0.95239567,105030.0,105020.0,0.46944656]
[1750302383381,0.95239567,105030.0,105020.0,0.47896801]
[1750302383595,0.98101667,105030.0,105020.0,0.46944656]
[1750302383801,0.98101667,105030.0,105020.0,0.47896801]
[1750302384169,0.98101667,105030.0,105020.0,0.45992502]
[1750302384380,0.98101667,105030.0,105020.0,0.46944656]
[1750302384861,0.98101667,105030.0,105020.0,0.47896801]
[1750302385023,0.98101667,105030.0,105020.0,0.46944656]
[1750302385223,0.95239567,105030.0,105020.0,0.47896801]
[1750302385575,0.95239567,105030.0,105020.0,0.46944656]
[1750302385792,0.98101667,105030.0,105020.0,0.47896801]
[1750302386071,0.95239567,105030.0,105020.0,0.47896801]
[1750302386901,0.98101767,105030.0,105020.0,0.47896801]
[1750302387354,0.95239567,105030.0,105020.0,0.48848937]
[1750302388111,0.98101767,105030.0,105020.0,0.48848937]
[1750302388587,0.95239567,105030.0,105020.0,0.48848937]
[1750302389008,0.98101767,105030.0,105020.0,0.48848937]
[1750302389461,0.95239567,105030.0,105020.0,0.48848937]
[1750302389706,0.98101767,105030.0,105020.0,0.48848937]
[1750302389927,0.95239567,105030.0,105020.0,0.48848937]
[1750302391860,0.95239567,105030.0,105020.0,0.51708937]
[1750302395653,0.98101767,105030.0,105020.0,0.51708937]
[1750302395868,0.95239567,105030.0,105020.0,0.51708937]
[1750302396610,0.98101767,105030.0,105020.0,0.51708937]
[1750302397101,0.95239567,105030.0,105020.0,0.51708937]
[1750302397710,0.95239567,105030.0,105020.0,0.48852502]
[1750302397913,0.95239567,105030.0,105020.0,0.46944647]
[1750302398125,0.95239567,105030.0,105020.0,0.50876783]
[1750302398534,0.98101667,105030.0,105020.0,0.50876783]
[1750302398834,0.95239567,105030.0,105020.0,0.50876783]
[1750302399278,0.98101767,105030.0,105020.0,0.53796783]
[1750302399493,0.95239567,105030.0,105020.0,0.53796783]
[1750302404123,0.37716413,105030.0,105020.0,0.53796783]
[1750302404329,0.95239567,105030.0,105020.0,0.53796783]
[1750302406391,0.95239567,105030.0,105020.0,0.51892502]
[1750302406612,0.95239567,105030.0,105020.0,0.50876801]
[1750302406983,0.98101767,105030.0,105020.0,0.50876801]
[1750302407181,0.98101767,105030.0,105020.0,0.49924656]
[1750302407396,0.95239567,105030.0,105020.0,0.50876801]
[1750302407629,0.98101767,105030.0,105020.0,0.33552538]
[1750302407830,1.28767425,105030.0,105020.0,0.35408172]
[1750302408005,1.29719488,105030.0,105020.0,0.1636419]
[1750302408486,1.27815371,105030.0,105020.0,0.1636419]
[1750302408670,1.00005839,105030.0,105020.0,0.36360353]
[1750302409632,0.98101767,105030.0,105020.0,0.37312498]
[1750302410087,0.98101767,105030.0,105020.0,0.40422498]
[1750302410911,0.98101767,105030.0,105020.0,0.41374634]
[1750302411258,0.98101767,105030.0,105020.0,0.40422498]
[1750302411471,0.98101767,105030.0,105020.0,0.40422507]
[1750302411765,0.98101767,105030.0,105020.0,0.41374652]
[1750302411991,0.98101767,105030.0,105020.0,0.40422507]
[1750302412419,0.98101767,105030.0,105020.0,0.41374652]
[1750302413268,0.98101767,105030.0,105020.0,0.42326788]
[1750302413475,0.98101767,105030.0,105020.0,0.41374652]
[1750302414340,0.99053794,105030.0,105020.0,0.40422507]
[1750302414739,0.98101767,105030.0,105020.0,0.41374652]
[1750302415413,0.97853767,105030.0,105020.0,0.41374652]
[1750302415589,0.97853767,105030.0,105020.0,0.44234652]
[1750302415787,0.97853767,105030.0,105020.0,0.45186788]
[1750302418379,0.97853767,105030.0,105020.0,0.44234652]
[1750302418586,0.97853767,105030.0,105020.0,0.45186788]
[1750302419829,0.97853767,105030.0,105020.0,0.44234652]
[1750302420544,0.97853767,105030.0,105020.0,0.43282507]
[1750302420763,0.97853767,105030.0,105020.0,0.44234652]
[1750302421628,0.97853767,105030.0,105020.0,0.45186788]
[1750302422975,0.97853767,105030.0,105020.0,0.54810964]
[1750302423191,0.37468413,105030.0,105020.0,0.54810964]
[1750302423407,0.94991567,105030.0,105020.0,0.54810964]
[1750302426478,0.37468413,105030.0,105020.0,0.54810964]
[1750302426722,0.94991567,105030.0,105020.0,0.54810964]
[1750302427779,0.94991567,105030.0,105020.0,0.54910964]
[1750302428355,0.94991567,105030.0,105020.0,0.55110964]
[1750302432682,0.94991567,105030.0,105020.0,0.39698964]
[1750302432896,0.94991567,105030.0,105020.0,0.55106964]
[1750302435634,0.57523154,105030.0,105020.0,0.55106964]
[1750302437545,0.95303742,105030.0,105020.0,0.55106964]
[1750302438748,0.66542165,105030.0,105020.0,0.55106964]
[1750302442363,0.95303742,105030.0,105020.0,0.55106964]
[1750302442788,0.66542165,105030.0,105020.0,0.55106964]
[1750302444167,0.37780588,105030.0,105020.0,0.55106964]
[1750302444374,0.66542165,105030.0,105020.0,0.55106964]
[1750302444799,0.95303742,105030.0,105020.0,0.55106964]
[1750302445009,0.66542165,105030.0,105020.0,0.55106964]
[1750302445214,0.66542165,105030.0,105020.0,0.55102964]
[1750302447833,0.95303742,105030.0,105020.0,0.55102964]
[1750302453537,0.37780588,105030.0,105020.0,0.55102964]
[1750302453748,0.66542165,105030.0,105020.0,0.55102964]
[1750302455647,0.4720659,105030.0,105020.0,0.55102964]
[1750302455859,0.32542165,105030.0,105020.0,0.55102964]
[1750302456490,0.32542165,105030.0,105020.0,0.56557049]
[1750302463269,0.66542165,105030.0,105020.0,0.56557049]
[1750302464819,0.66542165,105030.0,105020.0,0.60497049]
[1750302466064,0.37780588,105030.0,105020.0,0.60497049]
[1750302466267,0.66542165,105030.0,105020.0,0.60497049]
[1750302483303,0.66406165,105030.0,105020.0,0.60497049]
[1750302483968,0.66406165,105030.0,105020.0,0.60493049]
[1750302491908,0.66406165,105030.0,105020.0,0.41153049]
[1750302492155,0.66406165,105030.0,105020.0,0.60493049]
[1750302494344,0.66406165,105030.0,105020.0,0.41153049]
[1750302494551,0.66406165,105030.0,105020.0,0.60493049]
[1750302494767,0.95167742,105030.0,105020.0,0.37668964]
[1750302494999,0.95167742,105030.0,105020.0,0.53068964]
[1750302496446,0.95167742,105030.0,105020.0,0.33728964]
[1750302496665,1.01027742,105030.0,105020.0,0.33728964]
[1750302497118,1.29789319,105030.0,105020.0,0.30872529]
[1750302497346,1.01027742,105030.0,105020.0,0.47224683]
[1750302497616,1.03889942,105030.0,105020.0,0.47224683]
[1750302497850,0.88145596,105030.0,105020.0,0.47224692]
[1750302498279,0.88145596,105030.0,105020.0,0.31824692]
[1750302498280,1.16907173,105030.0,105020.0,0.31824692]
[1750302498502,1.178592,105030.0,105020.0,0.21341223]
[1750302498777,1.178592,105030.0,105020.0,0.33879923]
[1750302498995,0.88145596,105030.0,105020.0,0.35784222]
[1750302499260,0.88145596,105030.0,105020.0,0.35684222]
[1750302499475,1.16907173,105030.0,105020.0,0.19132077]
[1750302499659,1.16907173,105030.0,105020.0,0.35484222]
[1750302500332,1.16907173,105030.0,105020.0,0.36436358]
[1750302500765,1.16907173,105030.0,105020.0,0.19132077]
[1750302500971,1.16907173,105030.0,105020.0,0.34532077]
[1750302501177,1.16907173,105030.0,105020.0,0.35484213]
[1750302501639,0.88145596,105030.0,105020.0,0.35484213]
[1750302501845,0.88145596,105030.0,105020.0,0.34532077]
[1750302502051,0.88145596,105030.0,105020.0,0.35484222]
[1750302502266,0.9209657,105030.0,105020.0,0.35484222]
[1750302502474,0.9209657,105030.0,105020.0,0.36436358]
[1750302523076,0.8911657,105030.0,105020.0,0.36436358]
[1750302523509,0.31593416,105030.0,105020.0,0.36436358]
[1750302523722,0.8623657,105030.0,105020.0,0.36436358]
[1750302528930,0.64336328,105030.0,105020.0,0.36436358]
[1750302529363,0.70226328,105030.0,105020.0,0.36436358]
[1750302529809,0.98987905,105030.0,105020.0,0.35484222]
[1750302530319,0.98987905,105030.0,105020.0,0.33579923]
[1750302530320,0.71178355,105030.0,105020.0,0.33579923]
[1750302530747,0.721304,105030.0,105020.0,0.33579932]
[1750302530959,1.05178355,105030.0,105020.0,0.35484249]
[1750302531099,1.05178355,105030.0,105020.0,0.34532095]
[1750302531306,1.05178355,105030.0,105020.0,0.33579932]
[1750302531514,1.04226328,105030.0,105020.0,0.34532095]
[1750302531738,1.05178355,105030.0,105020.0,0.3548424]
[1750302531954,1.05178355,105030.0,105020.0,0.34532104]
[1750302532155,1.05178355,105030.0,105020.0,0.35484258]
[1750302532362,1.06130409,105030.0,105020.0,0.33575941]
[1750302532580,1.05178355,105030.0,105020.0,0.46920701]
[1750302532923,1.05178355,105030.0,105020.0,0.45968538]
[1750302533110,1.05178355,105030.0,105020.0,0.4692071]
[1750302533318,1.05178355,105030.0,105020.0,0.47872873]
[1750302533880,1.06130391,105030.0,105020.0,0.47872873]
[1750302534450,1.06130391,105030.0,105020.0,0.4692071]
[1750302534652,1.07082436,105030.0,105020.0,0.4692071]
[1750302535175,1.07082436,105030.0,105020.0,0.45968538]
[1750302535635,1.08034499,105030.0,105020.0,0.35392181]
[1750302535784,1.07082436,105030.0,105020.0,0.37296534]
[1750302536242,1.00240391,105030.0,105020.0,0.38248697]
[1750302537392,1.01192436,105030.0,105020.0,0.37296534]
[1750302537906,1.01192436,105030.0,105020.0,0.36344362]
[1750302538120,1.01192436,105030.0,105020.0,0.37296534]
[1750302538529,1.01192436,105030.0,105020.0,0.20948362]
[1750302538530,1.00240391,105030.0,105020.0,0.20948362]
[1750302538734,1.00240391,105030.0,105020.0,0.37296534]
[1750302539382,1.03180391,105030.0,105020.0,0.36344362]
[1750302539595,1.04132445,105030.0,105020.0,0.36344362]
[1750302539798,1.03180391,105030.0,105020.0,0.37296525]
[1750302540002,1.04132436,105030.0,105020.0,0.37296534]
[1750302540367,1.04132436,105030.0,105020.0,0.36344362]
[1750302540720,1.03180391,105030.0,105020.0,0.37296534]
[1750302541175,1.01192445,105030.0,105020.0,0.37296534]
[1750302541403,1.00240391,105030.0,105020.0,0.37296534]
[1750302541606,1.00240391,105030.0,105020.0,0.38248697]
[1750302541853,1.00240391,105030.0,105020.0,0.37296534]
[1750302542602,0.99288355,105030.0,105020.0,0.38248688]
[1750302544087,0.99288355,105030.0,105020.0,0.38248697]
[1750302544621,0.99288355,105030.0,105020.0,0.39200851]
[1750302545261,0.99288355,105030.0,105020.0,0.42280851]
[1750302545709,0.98336328,105030.0,105020.0,0.42280806]
[1750302545917,0.98336328,105030.0,105020.0,0.41328661]
[1750302546134,0.98336328,105030.0,105020.0,0.42280806]
[1750302546356,0.98336328,105030.0,105020.0,0.41328661]
[1750302546664,0.98336328,105030.0,105020.0,0.42280806]
[1750302546884,0.99288355,105030.0,105020.0,0.41328661]
[1750302547362,0.99288355,105030.0,105020.0,0.40376507]
[1750302547591,1.002404,105030.0,105020.0,0.39424344]
[1750302547949,0.99288355,105030.0,105020.0,0.39424344]
[1750302548171,1.01192445,105030.0,105020.0,0.39424344]
[1750302548409,1.00240391,105030.0,105020.0,0.36344344]
[1750302548720,1.00240391,105030.0,105020.0,0.35392172]
[1750302548925,1.00240391,105030.0,105020.0,0.36344335]
[1750302549415,1.01192436,105030.0,105020.0,0.36344344]
[1750302549618,1.01178153,105030.0,105020.0,0.36344344]
[1750302549833,1.01154349,105030.0,105020.0,0.36344344]
[1750302550474,1.00202304,105030.0,105020.0,0.37296507]
[1750302550763,1.00202304,105030.0,105020.0,0.38248661]
[1750302550931,0.99250268,105030.0,105020.0,0.38248661]
[1750302551133,0.99250268,105030.0,105020.0,0.37296507]
[1750302551341,0.99250268,105030.0,105020.0,0.19043991]
[1750302551552,1.00202304,105030.0,105020.0,0.36344353]
[1750302551964,1.00202304,105030.0,105020.0,0.37296516]
[1750302552408,1.00202304,105030.0,105020.0,0.36344353]
[1750302552555,1.00202304,105030.0,105020.0,0.37296516]
[1750302552760,1.01154349,105030.0,105020.0,0.36344353]
[1750302553764,1.01154349,105030.0,105020.0,0.36344362]
[1750302554302,1.01154349,105030.0,105020.0,0.37296534]
[1750302555213,1.01154349,105030.0,105020.0,0.36344362]
[1750302555402,1.01154349,105030.0,105020.0,0.37296534]
[1750302555805,1.00202304,105030.0,105020.0,0.37296534]
[1750302556062,1.00202304,105030.0,105020.0,0.38248697]
[1750302556279,1.00202304,105030.0,105020.0,0.37296534]
[1750302556720,0.98298241,105030.0,105020.0,0.38248679]
[1750302556943,0.98298241,105030.0,105020.0,0.41078679]
[1750302557600,0.99250268,105030.0,105020.0,0.41078688]
[1750302557827,0.99250268,105030.0,105020.0,0.40126534]
[1750302558114,0.99250268,105030.0,105020.0,0.41078697]
[1750302558335,0.99250268,105030.0,105020.0,0.40126534]
[1750302558547,0.99250268,105030.0,105020.0,0.42030851]
[1750302559590,1.00202322,105030.0,105020.0,0.23778362]
[1750302559803,1.00202313,105030.0,105020.0,0.40126534]
[1750302560107,1.00202304,105030.0,105020.0,0.41078697]
[1750302560322,1.00202304,105030.0,105010.0,0.02624]
[1750302560323,0.34952127,105020.0,105010.0,0.02624]
[1750302560527,0.34952127,105020.0,105000.0,0.0415238]
[1750302560528,1.46177455,105020.0,105000.0,0.0415238]
[1750302560731,1.46177455,105020.0,105000.0,0.33776451]
[1750302560732,0.57523154,105010.0,105000.0,0.33776451]
[1750302560933,0.57523154,105010.0,105000.0,0.50124786]
[1750302561131,0.57523154,105010.0,105000.0,0.50124795]
[1750302561268,0.61338071,105010.0,105000.0,0.50124795]
[1750302561998,0.61338071,105010.0,105000.0,0.49172451]
[1750302562212,0.62290306,105010.0,105000.0,0.4917246]
[1750302562373,0.6324255,105010.0,105000.0,0.032]
[1750302562590,0.63242541,105010.0,105000.0,0.19548371]
[1750302562797,0.63242541,105010.0,105000.0,0.18596]
[1750302562998,0.63242541,105010.0,105000.0,0.1954838]
[1750302563204,0.62290297,105010.0,105000.0,0.20500733]
[1750302563424,0.62290297,105010.0,105000.0,0.05104742]
[1750302563654,0.6324255,105010.0,105000.0,0.20600751]
[1750302563837,0.63242541,105010.0,105000.0,0.20800751]
[1750302564830,0.63242541,105010.0,105000.0,0.18896]
[1750302564831,0.64194804,105010.0,105000.0,0.18896]
[1750302565015,0.63242541,105010.0,105000.0,0.20800751]
[1750302565433,0.63242541,105010.0,105000.0,0.21753113]
[1750302565922,0.62290297,105010.0,105000.0,0.21753113]
[1750302566189,0.62290297,105010.0,105000.0,0.41753085]
[1750302566999,0.61338071,105010.0,105000.0,0.42705429]
[1750302567209,0.61338071,105010.0,105000.0,0.44633049]
[1750302567855,0.61338062,105010.0,105000.0,0.45585384]
[1750302568585,0.60385854,105010.0,105000.0,0.45585339]
[1750302568771,0.60385854,105010.0,105000.0,0.43680678]
[1750302568910,0.60385854,105010.0,105000.0,0.44633013]
[1750302569289,0.60385854,105010.0,105000.0,0.45585339]
[1750302570195,0.60385854,105010.0,105000.0,0.44633013]
[1750302570449,0.60385854,105010.0,105000.0,0.45585339]
[1750302570941,0.61338071,105010.0,105000.0,0.43680678]
[1750302571492,0.60385854,105010.0,105000.0,0.44633013]
[1750302572230,0.60385854,105010.0,105000.0,0.43680678]
[1750302572494,0.61338071,105010.0,105000.0,0.44633013]
[1750302573023,0.00952326,105000.0,104990.0,0.0296]
[1750302573286,1.51130042,105010.0,104990.0,0.49886914]
[1750302573541,0.86284731,105000.0,104990.0,0.50839322]
[1750302573787,0.86284731,105000.0,104990.0,0.52816914]
[1750302574028,0.89147631,105000.0,104990.0,0.53769322]
[1750302574991,0.89147631,105000.0,104990.0,0.54169322]
[1750302575531,0.89147631,105000.0,104990.0,0.54369322]
[1750302576896,0.89147631,105000.0,104990.0,0.53416923]
[1750302577408,0.89147631,105000.0,104990.0,0.5436934]
[1750302578066,0.89147631,105000.0,104990.0,0.55321748]
[1750302586233,0.89147631,105000.0,104990.0,0.5436934]
[1750302586437,0.89147631,105000.0,104990.0,0.55321748]
[1750302586800,0.89147631,105000.0,104990.0,0.5436934]
[1750302587407,0.89147631,105000.0,104990.0,0.53416923]
[1750302587812,0.89147631,105000.0,104990.0,0.5436934]
[1750302588020,0.90099948,105000.0,104990.0,0.52464506]
[1750302588279,0.90099948,105000.0,104990.0,0.49534506]
[1750302588524,0.90099948,105000.0,104990.0,0.50486941]
[1750302588714,0.90099939,105000.0,104990.0,0.48582062]
[1750302589347,0.90099939,105000.0,104990.0,0.49534506]
[1750302589558,0.92004591,105000.0,104990.0,0.14136638]
[1750302589752,0.91052256,105000.0,104990.0,0.50486968]
[1750302589913,0.91052256,105000.0,104990.0,0.49534524]
[1750302590131,0.92004582,105000.0,104990.0,0.49534524]
[1750302590518,0.92004582,105000.0,104990.0,0.50486968]
[1750302590721,0.90099939,105000.0,104990.0,0.51439403]
[1750302590925,0.90099939,105000.0,104990.0,0.50486968]
[1750302591121,0.90099939,105000.0,104990.0,0.51439403]
[1750302591468,0.90099939,105000.0,104990.0,0.50486968]
[1750302591689,0.90099939,105000.0,104990.0,0.51439403]
[1750302591837,0.90099939,105000.0,104990.0,0.50486968]
[1750302592902,0.90099939,105000.0,104990.0,0.51439403]
[1750302593126,0.89147631,105000.0,104990.0,0.51439403]
[1750302593332,0.9009993,105000.0,104990.0,0.52391829]
[1750302593570,0.9009993,105000.0,104990.0,0.55401829]
[1750302593798,0.89147631,105000.0,104990.0,0.55401784]
[1750302594031,0.89147631,105000.0,104990.0,0.54449367]
[1750302594756,0.89147631,105000.0,104990.0,0.55401775]
[1750302598649,0.60386054,105000.0,104990.0,0.55401775]
[1750302598884,0.57523154,105000.0,104990.0,0.55401775]
[1750302600382,0.86284731,105000.0,104990.0,0.55401775]
[1750302606428,0.57523154,105000.0,104990.0,0.55401775]
[1750302609343,0.86284731,105000.0,104990.0,0.55401775]
[1750302610201,0.37815117,105010.0,105000.0,0.20952334]
[1750302610366,0.97626056,105010.0,105000.0,0.20952334]
[1750302610564,0.97626056,105010.0,105000.0,0.23972334]
[1750302611566,0.97626056,105010.0,105000.0,0.24072334]
[1750302611964,0.97626056,105010.0,105000.0,0.24172334]
[1750302612396,0.97626056,105010.0,105000.0,0.25124669]
[1750302612638,0.97626056,105010.0,105000.0,0.24172334]
[1750302613408,0.98578273,105010.0,105000.0,0.24172334]
[1750302614298,0.97626056,105010.0,105000.0,0.25124669]
[1750302614735,0.97626056,105010.0,105000.0,0.24172334]
[1750302615769,0.97626056,105010.0,105000.0,0.25124669]
[1750302616191,0.98578291,105010.0,105000.0,0.36548352]
[1750302616403,0.97626056,105010.0,105000.0,0.37500696]
[1750302616614,0.98578282,105010.0,105000.0,0.37500705]
[1750302617033,0.98578273,105010.0,105000.0,0.38453049]
[1750302617695,0.98578273,105010.0,105000.0,0.37500705]
[1750302618121,1.28292085,105010.0,105000.0,0.1654838]
[1750302618327,1.28292085,105010.0,105000.0,0.17500751]
[1750302618552,1.28292085,105010.0,105000.0,0.18453113]
[1750302618812,1.28292076,105010.0,105000.0,0.38453085]
[1750302619023,1.28292076,105010.0,105000.0,0.37500732]
[1750302619843,1.28292076,105010.0,105000.0,0.38453085]
[1750302620393,1.28292076,105010.0,105000.0,0.37500732]
[1750302621020,1.29244311,105010.0,105000.0,0.37500732]
[1750302621230,1.29244311,105010.0,105000.0,0.3654837]
[1750302621863,1.30196564,105010.0,105000.0,0.1654838]
[1750302622048,1.30196555,105010.0,105000.0,0.17500751]
[1750302622271,1.29244311,105010.0,105000.0,0.37500732]
[1750302622947,1.29244311,105010.0,105000.0,0.22104732]
[1750302623157,1.29244311,105010.0,105000.0,0.37500732]
[1750302624092,1.29244311,105010.0,105000.0,0.38453085]
[1750302624303,1.29244311,105010.0,105000.0,0.37500732]
[1750302624969,1.28292076,105010.0,105000.0,0.38453085]
[1750302625929,1.2733985,105010.0,105000.0,0.3940542]
[1750302626147,1.2733985,105010.0,105000.0,0.39405429]
[1750302626357,1.2733985,105010.0,105000.0,0.38453085]
[1750302626545,1.2733985,105010.0,105000.0,0.39405429]
[1750302627382,1.2733985,105010.0,105000.0,0.42355429]
[1750302627605,1.2733985,105010.0,105000.0,0.41403085]
[1750302629515,1.2733985,105010.0,105000.0,0.42355429]
[1750302633582,1.2733985,105010.0,105000.0,0.41403085]
[1750302634056,1.2733985,105010.0,105000.0,0.42355429]
[1750302634263,1.28292085,105010.0,105000.0,0.41403085]
[1750302634470,1.2733985,105010.0,105000.0,0.41403085]
[1750302634695,1.2733985,105010.0,105000.0,0.42355429]
[1750302635586,1.27170533,105010.0,105000.0,0.42355429]
[1750302636469,1.27170533,105010.0,105000.0,0.41403085]
[1750302636681,1.27170533,105010.0,105000.0,0.42355429]
[1750302637612,1.27170533,105010.0,105000.0,0.41403085]
[1750302637851,1.27170533,105010.0,105000.0,0.26007085]
[1750302638054,1.27170533,105010.0,105000.0,0.42355429]
[1750302639187,1.27170533,105010.0,105000.0,0.41403085]
[1750302639393,1.27170533,105010.0,105000.0,0.42355429]
[1750302639613,1.26218316,105010.0,105000.0,0.42355384]
[1750302640310,0.38981377,105010.0,105000.0,0.5498956]
[1750302640488,0.91353837,105010.0,105000.0,0.54989506]
[1750302648047,0.69363805,105010.0,105000.0,0.54989506]
[1750302648261,0.57523154,105010.0,105000.0,0.54989506]
[1750302649333,0.86284731,105010.0,105000.0,0.54989506]
[1750302650080,1.20284731,105010.0,105000.0,0.54989506]
[1750302654293,1.20284731,105010.0,105000.0,0.54037189]
[1750302654515,1.20284731,105010.0,105000.0,0.5498947]
[1750302660721,1.20284731,105010.0,105000.0,0.5197947]
[1750302661824,1.20284731,105010.0,105000.0,0.51027153]
[1750302662038,1.21236939,105010.0,105000.0,0.51027153]
[1750302662449,1.20284731,105010.0,105000.0,0.51027153]
[1750302662672,1.20284731,105010.0,105000.0,0.5197947]
[1750302663767,1.21236939,105010.0,105000.0,0.5197947]
[1750302664968,1.21236939,105010.0,105000.0,0.50074827]
[1750302664969,1.22189156,105010.0,105000.0,0.50074827]
[1750302665390,1.22189156,105010.0,105000.0,0.51027153]
[1750302665593,1.22189156,105010.0,105000.0,0.50496153]
[1750302665818,1.22189156,105010.0,105000.0,0.28922556]
[1750302666051,1.22189156,105010.0,105000.0,0.50827225]
[1750302666391,1.22189156,105010.0,105000.0,0.49378225]
[1750302666610,1.22189156,105010.0,105000.0,0.47877225]
[1750302667153,1.23141382,105010.0,105000.0,0.43109557]
[1750302667374,1.23141382,105010.0,105000.0,0.42284557]
[1750302667869,1.23141382,105010.0,105000.0,0.43236883]
[1750302668111,1.23141382,105010.0,105000.0,0.42521883]
[1750302668536,1.23141382,105010.0,105000.0,0.41569557]
[1750302668753,1.23141382,105010.0,105000.0,0.41617884]
[1750302668978,1.23141382,105010.0,105000.0,0.40917885]
[1750302669215,1.23141382,105010.0,105000.0,0.40337885]
[1750302669701,1.23141382,105010.0,105000.0,0.39385559]
[1750302669993,1.23141382,105010.0,105000.0,0.39387885]
[1750302670205,1.23141382,105010.0,105000.0,0.38435559]
[1750302670435,1.23141382,105010.0,105000.0,0.38527885]
[1750302670648,1.22189156,105010.0,105000.0,0.38527885]
[1750302670866,1.22189156,105010.0,105000.0,0.41747822]
[1750302671318,1.22189156,105010.0,105000.0,0.40795505]
[1750302673307,1.22189156,105010.0,105000.0,0.44015505]
[1750302675696,1.23141391,105010.0,105000.0,0.47309172]
[1750302675916,1.26341391,105010.0,105000.0,0.46356846]
[1750302676161,1.26341391,105010.0,105000.0,0.46599172]
[1750302676376,1.26341391,105010.0,105000.0,0.41831502]
[1750302676584,1.25389156,105010.0,105000.0,0.46915352]
[1750302676794,1.26341391,105010.0,105000.0,0.40106732]
[1750302677004,1.26341391,105010.0,105000.0,0.39047067]
[1750302677192,1.26341391,105010.0,105000.0,0.35950067]
[1750302677398,1.26341391,105010.0,105000.0,0.06409212]
[1750302677611,1.30323644,105010.0,105000.0,0.17292733]
[1750302677813,1.30323644,105010.0,105000.0,0.35387981]
[1750302678022,1.31275916,105010.0,105000.0,0.15232319]
[1750302678232,1.31275916,105010.0,105000.0,0.32525025]
[1750302678233,1.27293644,105010.0,105000.0,0.32525025]
[1750302678651,1.30156444,105010.0,105000.0,0.32525034]
[1750302678854,1.30156444,105010.0,105000.0,0.31085035]
[1750302679077,1.30156435,105010.0,105000.0,0.32037379]
[1750302679314,1.26956435,105010.0,105000.0,0.32989714]
[1750302679536,1.26956435,105010.0,105000.0,0.32037379]
[1750302679809,1.26956435,105010.0,105000.0,0.31085035]
[1750302680021,1.27908688,105010.0,105000.0,0.31085035]
[1750302681297,1.27908688,105010.0,105000.0,0.32037379]
[1750302681530,1.26956435,105010.0,105000.0,0.32037379]
[1750302681958,1.27908688,105010.0,105000.0,0.32037379]
[1750302682335,1.27908688,105010.0,105000.0,0.30066035]
[1750302682550,1.27908743,105010.0,105000.0,0.25298364]
[1750302682758,1.2695648,105010.0,105000.0,0.37292705]
[1750302682931,1.2695648,105010.0,105000.0,0.36340352]
[1750302683154,1.2695648,105010.0,105000.0,0.37292705]
[1750302683377,1.2695648,105010.0,105000.0,0.32525034]
[1750302683576,1.2695648,105010.0,105000.0,0.25783708]
[1750302683852,1.2695648,105010.0,105000.0,0.36340316]
[1750302684522,1.2695648,105010.0,105000.0,0.35794679]
[1750302684875,1.2695648,105010.0,105000.0,0.35242679]
[1750302685390,1.2695648,105010.0,105000.0,0.30475008]
[1750302685640,1.2695648,105010.0,105000.0,0.30861379]
[1750302686143,1.2695648,105010.0,105000.0,0.26093708]
[1750302686374,1.2695648,105010.0,105000.0,0.24739708]
[1750302687273,1.25051974,105010.0,105000.0,0.25692043]
[1750302687691,1.26004218,105010.0,105000.0,0.25691998]
[1750302688515,1.26004218,105010.0,105000.0,0.24739672]
[1750302688717,1.26004218,105010.0,105000.0,0.23787337]
[1750302688917,1.26004218,105010.0,105000.0,0.24739672]
[1750302689152,1.26004218,105010.0,105000.0,0.23787337]
[1750302689374,1.26004218,105010.0,105000.0,0.24739663]
[1750302689769,1.26004218,105010.0,105000.0,0.24739672]
[1750302690283,1.26956481,105010.0,105000.0,0.23787337]
[1750302690648,1.26956481,105010.0,105000.0,0.17292715]
[1750302690889,1.26004218,105010.0,105000.0,0.36140678]
[1750302691064,1.26956471,105010.0,105000.0,0.38045366]
[1750302692027,1.26956471,105010.0,105000.0,0.36140687]
[1750302692197,1.26956471,105010.0,105000.0,0.35220687]
[1750302692422,1.26956471,105010.0,105000.0,0.36173031]
[1750302692622,1.26956471,105010.0,105000.0,0.37125366]
[1750302696136,1.0587434,105010.0,105000.0,0.37125366]
[1750302696296,1.0587434,105010.0,105000.0,0.38077692]
[1750302696501,1.0587434,105010.0,105000.0,0.37125366]
[1750302696715,1.0587434,105010.0,105000.0,0.38077692]
[1750302696936,1.0587434,105010.0,105000.0,0.37125366]
[1750302697987,1.0587434,105010.0,105000.0,0.38077692]
[1750302698176,1.0587434,105010.0,105000.0,0.37125366]
[1750302698475,1.0587434,105010.0,105000.0,0.38077692]
[1750302698683,1.0587434,105010.0,105000.0,0.37125366]
[1750302699858,1.0587434,105010.0,105000.0,0.36173031]
[1750302700071,1.06826612,105010.0,105000.0,0.36173031]
[1750302700282,1.0587434,105010.0,105000.0,0.36173031]
[1750302700501,1.0587434,105010.0,105000.0,0.37125366]
[1750302700735,1.0587434,105010.0,105000.0,0.36173031]
[1750302700945,1.06826603,105010.0,105000.0,0.36173031]
[1750302701159,1.06826603,105010.0,105000.0,0.33144031]
[1750302701368,1.06826603,105010.0,105000.0,0.34096366]
[1750302702302,1.06826603,105010.0,105000.0,0.33144031]
[1750302702494,1.06826603,105010.0,105000.0,0.34096366]
[1750302702703,1.0587434,105010.0,105000.0,0.35048692]
[1750302702905,1.0587434,105010.0,105000.0,0.3409633]
[1750302704660,1.04922087,105010.0,105000.0,0.3409633]
[1750302705142,1.0587434,105010.0,105000.0,0.3409633]
[1750302705678,1.06826603,105010.0,105000.0,0.33144004]
[1750302706517,1.0587434,105010.0,105000.0,0.3409633]
[1750302708167,1.0587434,105010.0,105000.0,0.33144004]
[1750302708343,1.06826603,105010.0,105000.0,0.33144004]
[1750302708520,1.0587434,105010.0,105000.0,0.33144004]
[1750302708730,1.0587434,105010.0,105000.0,0.3409633]
[1750302709055,1.0587434,105010.0,105000.0,0.35048647]
[1750302709807,1.04922087,105010.0,105000.0,0.35048647]
[1750302711146,1.07210542,105010.0,105000.0,0.3409633]
[1750302711354,1.08162805,105010.0,105000.0,0.3409633]